fUSD/lending_fUSD_20250616
["ID","MTS","AMOUNT","RATE_DAILY","PERIOD"]
[366135185,1750080718599,612.0,0.0002465,120]
[366135186,1750080750625,600.0,0.00015068,2]
[366135187,1750080781118,687.0,0.0002465,120]
[366135188,1750080791247,201.39,0.00012362,2]
[366135189,1750080837936,800.0,0.0002465,120]
[366135192,1750080882735,592.0,0.0001541,2]
[366135193,1750080885646,159.06790003,0.00024658,120]
[366135194,1750080922770,157.09,0.00015253,2]
[366135195,1750080957833,406.0,0.0002465,120]
[366135199,1750081018491,200.0,0.00015214,7]
[366135204,1750081091861,202.0,0.00015059,2]
[366135205,1750081126385,168.0,0.00015324,2]
[366135206,1750081202951,3935.28017157,0.00015319,2]
[366135207,1750081239819,250.0,0.00015209,2]
[366135208,1750081292914,150.0,0.0001549,5]
[366135209,1750081323408,338.0,0.00015314,2]
[366135210,1750081343619,1000.0,0.00015143,2]
[366135211,1750081343767,984.77,0.00015143,2]
[366135214,1750081451893,202.0,0.00014808,2]
[366135215,1750081475877,666.0,0.00015131,2]
[366135216,1750081524369,155.1,0.00013699,2]
[366135218,1750081542105,201.0,0.00014808,2]
[366135219,1750081558121,1367.34,0.00015136,2]
[366135222,1750081711985,13418.72,0.00015128,2]
[366135223,1750081722419,168.0,0.00015215,2]
[366135238,1750081812382,202.0,0.00014574,2]
[366135239,1750081812648,202.0,0.00015357,3]
[366135242,1750081832164,-338.0,0.0001556,2]
[366135243,1750081832176,-152.34,0.00015676,2]
[366135244,1750081832186,-592.0,0.00015681,2]
[366135245,1750081832196,-338.0,0.00015773,2]
[366135246,1750081832206,-191.4748675,0.00015787,2]
[366135247,1750081832216,-151.0,0.0001588,2]
[366135248,1750081832226,-151.0,0.00015883,2]
[366135249,1750081832236,-151.0,0.00015888,2]
[366135250,1750081832246,-151.0,0.00015888,2]
[366135251,1750081832256,-250.0,0.00016014,2]
[366135252,1750081832266,-107.06270107,0.00016014,2]
[366135253,1750081832328,-408.00415562,0.00016014,2]
[366135255,1750081832341,-684.93314331,0.00016014,2]
[366135257,1750081832351,-151.0,0.00016015,2]
[366135259,1750081832360,-207.4,0.00016015,2]
[366135261,1750081832370,-4366.63620374,0.00016015,2]
[366135263,1750081832380,-500.0,0.00016015,2]
[366135265,1750081832390,-500.0,0.00016015,2]
[366135267,1750081832399,-500.0,0.00016015,2]
[366135269,1750081832409,-500.0,0.00016015,2]
[366135271,1750081832419,-500.0,0.00016015,2]
[366135273,1750081832433,-500.0,0.00016015,2]
[366135275,1750081832443,-151.0,0.00016015,2]
[366135277,1750081832453,-301.89,0.00016024,2]
[366135279,1750081832463,-600.0,0.00016024,4]
[366135281,1750081832472,-303.06,0.00016024,2]
[366135283,1750081832482,-300.71,0.00016024,2]
[366135285,1750081832492,-305.03,0.00016024,2]
[366135286,1750081832504,-305.05,0.00016024,2]
[366135287,1750081832515,-300.55,0.00016024,2]
[366135288,1750081832524,-22291.28086347,0.00016024,2]
[366135289,1750081832534,-301.66,0.00016024,2]
[366135290,1750081832544,-304.65,0.00016025,2]
[366135291,1750081832553,-305.91,0.00016025,2]
[366135292,1750081832562,-600.0,0.00016025,4]
[366135293,1750081832572,-303.01,0.00016026,2]
[366135294,1750081832582,-303.31,0.00016026,2]
[366135295,1750081832592,-300.31,0.00016037,2]
[366135296,1750081832602,-301.83,0.00016037,2]
[366135297,1750081832612,-301.59,0.00016059,2]
[366135298,1750081832622,-154.21876069,0.0001607,2]
[366135299,1750081832631,-150.0,0.000161,2]
[366135301,1750081832641,-150.0,0.000161,2]
[366135302,1750081832650,-150.0,0.000161,2]
[366135305,1750081832660,-250.0,0.00016126,2]
[366135306,1750081832670,-15089.96,0.00016138,2]
[366135308,1750081832681,-202.0,0.00016141,4]
[366135310,1750081832691,-600.0,0.00016164,2]
[366135311,1750081832702,-1164.67,0.00016192,2]
[366135312,1750081832712,-170.78,0.00016192,2]
[366135313,1750081832722,-152.43,0.00016192,2]
[366135314,1750081832732,-278.63,0.00016192,2]
[366135315,1750081832742,-910.16,0.00016192,2]
[366135316,1750081832752,-150.9,0.00016192,2]
[366135318,1750081832762,-150.0,0.00016192,2]
[366135320,1750081832771,-150.0,0.00016192,2]
[366135322,1750081832781,-150.0,0.00016192,2]
[366135324,1750081832791,-1164.67,0.00016192,2]
[366135326,1750081832800,-150.0,0.00016192,2]
[366135328,1750081832813,-150.0,0.00016192,2]
[366135330,1750081832823,-150.0,0.00016192,2]
[366135332,1750081832833,-1164.67,0.00016192,2]
[366135334,1750081832843,-150.0,0.00016192,2]
[366135336,1750081832853,-150.0,0.00016192,2]
[366135338,1750081832863,-150.0,0.00016192,2]
[366135340,1750081832873,-1164.67,0.00016192,2]
[366135342,1750081832883,-150.0,0.00016192,2]
[366135344,1750081832893,-150.0,0.00016192,2]
[366135346,1750081832904,-150.0,0.00016192,2]
[366135348,1750081832913,-150.0,0.00016192,2]
[366135350,1750081832924,-1162.97,0.00016192,2]
[366135352,1750081832934,-39.23564429,0.00016192,2]
[366135360,1750081832998,-260.76435571,0.00016192,2]
[366135361,1750081833008,-150.0,0.00016192,2]
[366135364,1750081833019,-6.97771045,0.00016192,2]
[366135366,1750081833032,-143.02228955,0.00016192,2]
[366135368,1750081833042,-150.0,0.000162,2]
[366135370,1750081833053,-191.4748675,0.00016202,2]
[366135372,1750081833064,-592.0,0.00016231,2]
[366135374,1750081833075,-1000.0,0.00016238,2]
[366135376,1750081833086,-255.47509555,0.0001629,3]
[366135378,1750081833100,-121.54490445,0.0001629,3]
[366135380,1750081833110,-358.38918302,0.00016292,2]
[366135382,1750081833121,-458.55418095,0.00016299,2]
[366135386,1750081833147,-2946.00008513,0.00016299,2]
[366135388,1750081833160,-637.82590915,0.00016299,2]
[366135390,1750081833172,-102.4367455,0.00016299,2]
[366135392,1750081833183,-720.54887764,0.000163,2]
[366135396,1750081833212,-185618.34349032,0.000163,2]
[366135398,1750081833225,-1469.19103204,0.000163,2]
[366135400,1750081833235,-4240.78639176,0.00016302,2]
[366135402,1750081833247,-2600.0,0.00016302,2]
[366135478,1750081838027,-848.48940831,0.00016302,2]
[366135479,1750081838143,-5207.4,0.00016302,2]
[366135480,1750081838156,-674.06081139,0.00016302,2]
[366135481,1750081838170,-1519.18338854,0.00016302,2]
[366135482,1750081838180,-163.09926892,0.00016338,2]
[366135483,1750081838190,-163.34874333,0.00016338,2]
[366135484,1750081838200,-500.0,0.00016338,2]
[366135485,1750081838210,-1114.660621,0.00016365,2]
[366135486,1750081838220,-2300.0,0.000164,2]
[366135487,1750081838230,-610.0,0.00016407,2]
[366135488,1750081838240,-283.9933665,0.00016437,2]
[366135489,1750081838266,-53.09965202,0.00016437,2]
[366135490,1750081838277,-197.73,0.00016437,2]
[366135491,1750081838286,-151.0,0.00016438,2]
[366135492,1750081838297,-604.21904436,0.00016438,2]
[366135494,1750081838307,-604.21904436,0.00016438,2]
[366135495,1750081838317,-604.21904436,0.00016438,2]
[366135496,1750081838327,-311.40560465,0.00016438,2]
[366135497,1750081838340,-292.81343971,0.00016438,2]
[366135498,1750081838350,-604.21904436,0.00016438,2]
[366135499,1750081838360,-279.08751593,0.00016438,2]
[366135501,1750081838373,-325.13152843,0.00016438,2]
[366135503,1750081838383,-604.21904436,0.00016438,2]
[366135505,1750081838393,-604.21904436,0.00016438,2]
[366135507,1750081838403,-390.63038302,0.00016438,2]
[366135665,1750081840089,-151.0,0.00015904,2]
[366135667,1750081840099,-244.92311807,0.000162,2]
[366135674,1750081840152,-755.07688193,0.000162,2]
[366135676,1750081840162,-127.92311807,0.00016438,2]
[366135682,1750081840212,-85.66554327,0.00016438,2]
[366135684,1750081840221,-604.21904436,0.00016438,2]
[366135686,1750081840231,-462.01541483,0.00016438,2]
[366135699,1750081840348,-142.20362953,0.00016438,2]
[366135701,1750081840360,-604.21904436,0.00016438,2]
[366135703,1750081840370,-604.21904436,0.00016438,2]
[366135705,1750081840381,-604.21904436,0.00016438,2]
[366135707,1750081840391,-604.21904436,0.00016438,2]
[366135709,1750081840401,-604.21904436,0.00016438,2]
[366135711,1750081840410,-604.21904436,0.00016438,2]
[366135713,1750081840421,-604.21904436,0.00016438,2]
[366135715,1750081840435,-604.21904436,0.00016438,2]
[366135717,1750081840445,-604.21904436,0.00016438,2]
[366135719,1750081840454,-604.21904436,0.00016438,2]
[366135721,1750081840464,-604.21904436,0.00016438,2]
[366135723,1750081840474,-604.21904436,0.00016438,2]
[366135725,1750081840483,-604.21904436,0.00016438,2]
[366135728,1750081840495,-604.21904436,0.00016438,2]
[366135730,1750081840505,-604.21904436,0.00016438,2]
[366135732,1750081840515,-604.21904436,0.00016438,2]
[366135734,1750081840526,-604.21904436,0.00016438,2]
[366135736,1750081840536,-604.21904436,0.00016438,2]
[366135738,1750081840545,-604.21904436,0.00016438,2]
[366135740,1750081840555,-604.21904436,0.00016438,2]
[366135742,1750081840569,-604.21904436,0.00016438,2]
[366135744,1750081840579,-604.21904436,0.00016438,2]
[366135746,1750081840589,-604.21904436,0.00016438,2]
[366135748,1750081840598,-604.21904436,0.00016438,2]
[366135751,1750081840608,-604.21904436,0.00016438,2]
[366135752,1750081840618,-604.21904436,0.00016438,2]
[366135754,1750081840628,-604.21904436,0.00016438,2]
[366135757,1750081840638,-604.21904436,0.00016438,2]
[366135759,1750081840647,-604.21904436,0.00016438,2]
[366135761,1750081840657,-604.21904436,0.00016438,2]
[366135763,1750081840667,-604.21904436,0.00016438,2]
[366135765,1750081840677,-604.21904436,0.00016438,2]
[366135767,1750081840687,-604.21904436,0.00016438,2]
[366135769,1750081840697,-604.21904436,0.00016438,2]
[366135772,1750081840706,-604.21904436,0.00016438,2]
[366135775,1750081840716,-604.21904436,0.00016438,2]
[366135778,1750081840726,-604.21904436,0.00016438,2]
[366135781,1750081840735,-604.21904436,0.00016438,2]
[366135784,1750081840746,-604.21904436,0.00016438,2]
[366135786,1750081840756,-604.21904436,0.00016438,2]
[366135788,1750081840766,-604.21904436,0.00016438,2]
[366135790,1750081840776,-604.21904436,0.00016438,2]
[366135792,1750081840785,-604.21904436,0.00016438,2]
[366135794,1750081840795,-604.21904436,0.00016438,2]
[366135796,1750081840805,-604.21904436,0.00016438,2]
[366135798,1750081840814,-604.21904436,0.00016438,2]
[366135800,1750081840824,-604.21904436,0.00016438,2]
[366135802,1750081840834,-604.21904436,0.00016438,2]
[366135804,1750081840843,-604.21904436,0.00016438,2]
[366135806,1750081840853,-604.21904436,0.00016438,2]
[366135808,1750081840862,-604.21904436,0.00016438,2]
[366135810,1750081840871,-604.21904435,0.00016438,2]
[366135812,1750081840882,-604.21904435,0.00016438,2]
[366135814,1750081840892,-604.21904435,0.00016438,2]
[366135816,1750081840901,-604.21904435,0.00016438,2]
[366135818,1750081840911,-604.21904435,0.00016438,2]
[366135820,1750081840920,-604.21904435,0.00016438,2]
[366135822,1750081840931,-604.21904435,0.00016438,2]
[366135824,1750081840940,-604.21904435,0.00016438,2]
[366135826,1750081840949,-604.21904435,0.00016438,2]
[366135828,1750081840959,-604.21904435,0.00016438,2]
[366135830,1750081840968,-604.21904435,0.00016438,2]
[366135832,1750081840978,-604.21904435,0.00016438,2]
[366135834,1750081840988,-604.21904435,0.00016438,2]
[366135836,1750081840997,-604.21904435,0.00016438,2]
[366135838,1750081841007,-604.21904435,0.00016438,2]
[366135840,1750081841017,-604.21904435,0.00016438,2]
[366135842,1750081841026,-604.21904435,0.00016438,2]
[366135844,1750081841036,-604.21904435,0.00016438,2]
[366135846,1750081841046,-604.21904435,0.00016438,2]
[366135848,1750081841056,-604.21904435,0.00016438,2]
[366135850,1750081841065,-604.21904435,0.00016438,2]
[366135852,1750081841076,-604.21904435,0.00016438,2]
[366135854,1750081841086,-604.21904435,0.00016438,2]
[366135856,1750081841095,-604.21904435,0.00016438,2]
[366135858,1750081841105,-604.21904435,0.00016438,2]
[366135861,1750081841115,-604.21904435,0.00016438,2]
[366135864,1750081841124,-604.21904435,0.00016438,2]
[366135867,1750081841134,-490.70243725,0.00016438,2]
[366135869,1750081841144,-500.0,0.00016438,2]
[366135871,1750081841154,-581.64502115,0.00016438,2]
[366135873,1750081841164,-490.0,0.00016438,2]
[366135875,1750081841174,-490.0,0.00016438,2]
[366135876,1750081841184,-490.0,0.00016438,2]
[366135878,1750081841194,-490.0,0.00016438,2]
[366135880,1750081841204,-490.0,0.00016438,2]
[366135883,1750081841214,-490.0,0.00016438,2]
[366135885,1750081841223,-490.0,0.00016438,2]
[366135887,1750081841233,-490.0,0.00016438,2]
[366135889,1750081841243,-490.0,0.00016438,2]
[366135891,1750081841253,-490.0,0.00016438,2]
[366135893,1750081841264,-490.0,0.00016438,2]
[366135895,1750081841274,-490.0,0.00016438,2]
[366135897,1750081841284,-425.97651011,0.00016438,2]
[366135899,1750081841295,-490.0,0.00016438,2]
[366135901,1750081841305,-490.0,0.00016438,2]
[366135903,1750081841315,-490.0,0.00016438,2]
[366135905,1750081841325,-490.0,0.00016438,2]
[366135907,1750081841335,-490.0,0.00016438,2]
[366135909,1750081841345,-490.0,0.00016438,2]
[366135911,1750081841355,-490.0,0.00016438,2]
[366135912,1750081841364,-490.0,0.00016438,2]
[366135913,1750081841374,-490.0,0.00016438,2]
[366135914,1750081841384,-490.0,0.00016438,2]
[366135915,1750081841396,-490.0,0.00016438,2]
[366135916,1750081841406,-490.0,0.00016438,2]
[366135917,1750081841416,-490.0,0.00016438,2]
[366135918,1750081841428,-490.0,0.00016438,2]
[366135919,1750081841438,-490.0,0.00016438,2]
[366135920,1750081841448,-508.57411527,0.00016438,2]
[366135921,1750081841457,-739.65,0.00016438,2]
[366135922,1750081841468,-490.0,0.00016438,2]
[366135923,1750081841478,-490.0,0.00016438,2]
[366135924,1750081841487,-490.0,0.00016438,2]
[366135925,1750081841498,-490.0,0.00016438,2]
[366135926,1750081841507,-490.0,0.00016438,2]
[366135927,1750081841518,-490.0,0.00016438,2]
[366135928,1750081841528,-490.0,0.00016438,2]
[366135929,1750081841537,-490.0,0.00016438,2]
[366135930,1750081841547,-736.36,0.00016438,2]
[366135931,1750081841556,-490.0,0.00016438,2]
[366135932,1750081841566,-490.0,0.00016438,2]
[366135933,1750081841575,-490.0,0.00016438,2]
[366135934,1750081841585,-588.0,0.00016438,2]
[366135935,1750081841594,-1031.93,0.00016438,2]
[366135936,1750081841603,-490.0,0.00016438,2]
[366135937,1750081841613,-951.6,0.00016438,2]
[366135938,1750081841623,-490.0,0.00016438,2]
[366135939,1750081841633,-882.64,0.00016438,2]
[366135940,1750081841642,-490.0,0.00016438,2]
[366135941,1750081841651,-1041.0,0.00016438,2]
[366135942,1750081841661,-648.09,0.00016438,2]
[366135943,1750081841670,-490.0,0.00016438,2]
[366135944,1750081841682,-490.0,0.00016438,2]
[366135945,1750081841691,-1058.78,0.00016438,2]
[366135946,1750081841701,-565.8,0.00016438,2]
[366135947,1750081841710,-490.0,0.00016438,2]
[366135948,1750081841720,-490.0,0.00016438,2]
[366135949,1750081841730,-617.57,0.00016438,2]
[366135950,1750081841739,-490.0,0.00016438,2]
[366135951,1750081841749,-490.0,0.00016438,2]
[366135952,1750081841759,-526.08,0.00016438,2]
[366135953,1750081841769,-490.0,0.00016438,2]
[366135954,1750081841778,-490.0,0.00016438,2]
[366135955,1750081841788,-490.0,0.00016438,2]
[366135956,1750081841798,-490.0,0.00016438,2]
[366135957,1750081841808,-869.27,0.00016438,2]
[366135958,1750081841817,-546.35792707,0.00016438,2]
[366135959,1750081841827,-763.9,0.00016438,2]
[366135960,1750081841836,-490.0,0.00016438,2]
[366135961,1750081841845,-608.94,0.00016438,2]
[366135962,1750081841855,-515.6,0.00016438,2]
[366135963,1750081841864,-490.0,0.00016438,2]
[366135964,1750081841874,-548.57,0.00016438,2]
[366135965,1750081841883,-490.0,0.00016438,2]
[366135966,1750081841894,-490.0,0.00016438,2]
[366135967,1750081841904,-771.94,0.00016438,2]
[366135968,1750081841913,-490.0,0.00016438,2]
[366135969,1750081841923,-490.0,0.00016438,2]
[366135970,1750081841934,-490.0,0.00016438,2]
[366135971,1750081841944,-1482.01,0.00016438,2]
[366135972,1750081841955,-884.96,0.00016438,2]
[366135973,1750081841965,-866.41,0.00016438,2]
[366135974,1750081841974,-964.77,0.00016438,2]
[366135975,1750081841985,-500.36,0.00016438,2]
[366135976,1750081841995,-490.0,0.00016438,2]
[366135977,1750081842005,-893.4,0.00016438,2]
[366135978,1750081842015,-878.89,0.00016438,2]
[366135979,1750081842025,-518.56836557,0.00016438,2]
[366135980,1750081842035,-490.0,0.00016438,2]
[366135981,1750081842044,-533.04,0.00016438,2]
[366135982,1750081842053,-490.0,0.00016438,2]
[366135983,1750081842062,-1499.49,0.00016438,2]
[366135984,1750081842072,-490.0,0.00016438,2]
[366135985,1750081842082,-490.0,0.00016438,2]
[366135986,1750081842091,-490.0,0.00016438,2]
[366135987,1750081842102,-946.82,0.00016438,2]
[366135988,1750081842112,-490.0,0.00016438,2]
[366135989,1750081842122,-556.69,0.00016438,2]
[366135990,1750081842131,-490.0,0.00016438,2]
[366135991,1750081842141,-490.0,0.00016438,2]
[366135992,1750081842151,-490.0,0.00016438,2]
[366135993,1750081842160,-490.0,0.00016438,2]
[366135994,1750081842170,-490.0,0.00016438,2]
[366135995,1750081842180,-490.0,0.00016438,2]
[366135996,1750081842190,-490.0,0.00016438,2]
[366135997,1750081842200,-490.0,0.00016438,2]
[366135998,1750081842210,-619.83,0.00016438,2]
[366135999,1750081842219,-810.32,0.00016438,2]
[366136000,1750081842228,-490.0,0.00016438,2]
[366136001,1750081842238,-490.0,0.00016438,2]
[366136002,1750081842248,-850.44,0.00016438,2]
[366136003,1750081842258,-490.0,0.00016438,2]
[366136004,1750081842268,-490.0,0.00016438,2]
[366136005,1750081842278,-769.54,0.00016438,2]
[366136006,1750081842288,-490.0,0.00016438,2]
[366136007,1750081842298,-490.0,0.00016438,2]
[366136008,1750081842307,-490.0,0.00016438,2]
[366136009,1750081842317,-1136.78,0.00016438,2]
[366136010,1750081842327,-490.0,0.00016438,2]
[366136011,1750081842336,-1103.85,0.00016438,2]
[366136012,1750081842345,-490.0,0.00016438,2]
[366136013,1750081842355,-708.62,0.00016438,2]
[366136014,1750081842365,-490.0,0.00016438,2]
[366136015,1750081842375,-490.0,0.00016438,2]
[366136016,1750081842384,-490.0,0.00016438,2]
[366136017,1750081842394,-1502.19,0.00016438,2]
[366136018,1750081842403,-349.537994,0.00016438,2]
[366136019,1750081842413,-698.53,0.00016438,2]
[366136020,1750081842425,-904.34,0.00016438,2]
[366136021,1750081842438,-490.0,0.00016438,2]
[366136022,1750081842448,-490.0,0.00016438,2]
[366136023,1750081842458,-490.0,0.00016438,2]
[366136024,1750081842468,-490.0,0.00016438,2]
[366136025,1750081842478,-490.0,0.00016438,2]
[366136026,1750081842487,-490.0,0.00016438,2]
[366136027,1750081842497,-490.0,0.00016438,2]
[366136028,1750081842506,-490.0,0.00016438,2]
[366136029,1750081842516,-490.0,0.00016438,2]
[366136030,1750081842525,-1274.9,0.00016438,2]
[366136031,1750081842535,-490.0,0.00016438,2]
[366136032,1750081842544,-835.57,0.00016438,2]
[366136033,1750081842553,-519.27,0.00016438,2]
[366136034,1750081842563,-1337.62,0.00016438,2]
[366136035,1750081842572,-293.112158,0.00016438,2]
[366136036,1750081842581,-572.14,0.00016438,2]
[366136037,1750081842591,-490.0,0.00016438,2]
[366136038,1750081842600,-527.1,0.00016438,2]
[366136039,1750081842612,-530.89,0.00016438,2]
[366136040,1750081842621,-490.0,0.00016438,2]
[366136041,1750081842631,-490.0,0.00016438,2]
[366136042,1750081842641,-900.37,0.00016438,2]
[366136043,1750081842651,-490.0,0.00016438,2]
[366136044,1750081842660,-388.49574028,0.00016438,2]
[366136045,1750081842670,-322.11733847,0.00016438,2]
[366136046,1750081842679,-490.0,0.00016438,2]
[366136047,1750081842690,-490.0,0.00016438,2]
[366136048,1750081842699,-490.0,0.00016438,2]
[366136049,1750081842709,-490.0,0.00016438,2]
[366136050,1750081842719,-747.78,0.00016438,2]
[366136051,1750081842729,-490.0,0.00016438,2]
[366136052,1750081842738,-1110.49,0.00016438,2]
[366136053,1750081842747,-752.1,0.00016438,2]
[366136054,1750081842756,-490.0,0.00016438,2]
[366136055,1750081842767,-490.0,0.00016438,2]
[366136056,1750081842776,-1357.54,0.00016438,2]
[366136057,1750081842786,-490.0,0.00016438,2]
[366136058,1750081842796,-490.0,0.00016438,2]
[366136059,1750081842805,-490.0,0.00016438,2]
[366136060,1750081842814,-764.78,0.00016438,2]
[366136061,1750081842824,-300.0,0.00016438,2]
[366136062,1750081842834,-490.0,0.00016438,2]
[366136063,1750081842843,-490.0,0.00016438,2]
[366136064,1750081842853,-490.0,0.00016438,2]
[366136065,1750081842862,-1090.82,0.00016438,2]
[366136066,1750081842872,-708.57,0.00016438,2]
[366136067,1750081842881,-1141.26,0.00016438,2]
[366136069,1750081842890,-934.93,0.00016438,2]
[366136070,1750081842900,-490.0,0.00016438,2]
[366136071,1750081842910,-490.0,0.00016438,2]
[366136072,1750081842919,-541.32,0.00016438,2]
[366136073,1750081842929,-491.21963663,0.00016438,2]
[366136074,1750081842941,-490.0,0.00016438,2]
[366136075,1750081842951,-490.0,0.00016438,2]
[366136076,1750081842962,-490.0,0.00016438,2]
[366136077,1750081842972,-490.0,0.00016438,2]
[366136078,1750081842982,-1078.5,0.00016438,2]
[366136079,1750081842992,-1034.09,0.00016438,2]
[366136080,1750081843002,-560.64,0.00016438,2]
[366136081,1750081843011,-490.0,0.00016438,2]
[366136082,1750081843020,-173.349031,0.00016438,2]
[366136083,1750081843030,-490.0,0.00016438,2]
[366136084,1750081843040,-490.0,0.00016438,2]
[366136085,1750081843049,-490.37105966,0.00016438,2]
[366136086,1750081843059,-835.49,0.00016438,2]
[366136087,1750081843068,-490.0,0.00016438,2]
[366136088,1750081843078,-490.0,0.00016438,2]
[366136089,1750081843087,-1828.37,0.00016438,2]
[366136090,1750081843097,-656.01,0.00016438,2]
[366136091,1750081843107,-490.0,0.00016438,2]
[366136092,1750081843116,-490.0,0.00016438,2]
[366136093,1750081843126,-846.62,0.00016438,2]
[366136094,1750081843136,-490.0,0.00016438,2]
[366136095,1750081843146,-490.0,0.00016438,2]
[366136096,1750081843156,-490.0,0.00016438,2]
[366136097,1750081843166,-490.0,0.00016438,2]
[366136098,1750081843175,-1325.38,0.00016438,2]
[366136099,1750081843185,-490.0,0.00016438,2]
[366136100,1750081843195,-490.0,0.00016438,2]
[366136101,1750081843204,-490.0,0.00016438,2]
[366136102,1750081843214,-490.0,0.00016438,2]
[366136103,1750081843223,-490.0,0.00016438,2]
[366136104,1750081843233,-490.0,0.00016438,2]
[366136105,1750081843244,-490.0,0.00016438,2]
[366136106,1750081843254,-923.52,0.00016438,2]
[366136107,1750081843264,-490.0,0.00016438,2]
[366136108,1750081843273,-490.0,0.00016438,2]
[366136109,1750081843283,-490.0,0.00016438,2]
[366136111,1750081843293,-490.0,0.00016438,2]
[366136112,1750081843302,-490.0,0.00016438,2]
[366136113,1750081843312,-490.0,0.00016438,2]
[366136114,1750081843322,-490.0,0.00016438,2]
[366136115,1750081843332,-490.0,0.00016438,2]
[366136116,1750081843342,-2152.23,0.00016438,2]
[366136118,1750081843352,-490.0,0.00016438,2]
[366136119,1750081843362,-490.0,0.00016438,2]
[366136120,1750081843372,-490.0,0.00016438,2]
[366136121,1750081843382,-490.0,0.00016438,2]
[366136122,1750081843391,-490.0,0.00016438,2]
[366136123,1750081843401,-984.32,0.00016438,2]
[366136124,1750081843411,-1049.0,0.00016438,2]
[366136125,1750081843421,-490.0,0.00016438,2]
[366136126,1750081843439,-490.0,0.00016438,2]
[366136127,1750081843449,-516.68,0.00016438,2]
[366136128,1750081843459,-490.0,0.00016438,2]
[366136129,1750081843468,-490.0,0.00016438,2]
[366136130,1750081843479,-1645.72,0.00016438,2]
[366136131,1750081843489,-867.49,0.00016438,2]
[366136132,1750081843498,-490.0,0.00016438,2]
[366136133,1750081843510,-1084.96,0.00016438,2]
[366136134,1750081843521,-532.56,0.00016438,2]
[366136135,1750081843531,-490.0,0.00016438,2]
[366136136,1750081843541,-606.37,0.00016438,2]
[366136137,1750081843550,-490.0,0.00016438,2]
[366136138,1750081843560,-582.66,0.00016438,2]
[366136139,1750081843570,-490.0,0.00016438,2]
[366136140,1750081843580,-490.77245717,0.00016438,2]
[366136141,1750081843589,-1254.27,0.00016438,2]
[366136142,1750081843599,-697.03,0.00016438,2]
[366136143,1750081843609,-490.0,0.00016438,2]
[366136144,1750081843621,-572.57,0.00016438,2]
[366136145,1750081843630,-490.0,0.00016438,2]
[366136146,1750081843640,-490.0,0.00016438,2]
[366136147,1750081843650,-150.0,0.00016438,2]
[366136148,1750081843659,-1602.98,0.00016438,2]
[366136149,1750081843669,-203.43435403,0.00016438,2]
[366136150,1750081843679,-1039.66,0.00016438,2]
[366136151,1750081843691,-151.36736868,0.00016438,2]
[366136152,1750081843700,-696.41,0.00016438,2]
[366136153,1750081843710,-150.76024215,0.00016438,2]
[366136154,1750081843720,-150.0,0.00016438,2]
[366136155,1750081843730,-490.0,0.00016438,2]
[366136156,1750081843739,-150.0,0.00016438,2]
[366136157,1750081843749,-490.0,0.00016438,2]
[366136158,1750081843759,-490.0,0.00016438,2]
[366136159,1750081843768,-490.0,0.00016438,2]
[366136160,1750081843778,-490.0,0.00016438,2]
[366136161,1750081843788,-1029.67,0.00016438,2]